Cogmind - Beta 13 @@@ ROGUE MODE // 2024.03.31 @ 13:38:39 Player: sweetanimebabe Result: Destroyed by G-47 Trooper with Particle Gun Performance ------------- Evolutions (2) 1000 Regions Visited (5) 1000 Robots Destroyed (24) 120 Value Destroyed (615) 615 Prototype IDs (2) 40 Alien Tech Used (0) 0 Bonus (200) 200 TOTAL SCORE: 2975 Bonus ------- Entered Garrisons 200 Cogmind --------- Core Integrity 0/550 Matter 300/300 Energy 100/100 System Corruption 0% Temperature Cool (9) Movement Core (50) Location -8/Garrison Parts ------- > --- POWER (1) -------- (None) > --- PROPULSION (3) --- (None) > --- UTILITY (5) ------ Armor Integrity Analyzer > --- WEAPON (2) ------- (None) > --- INVENTORY (5) ---- (None) Peak State ------------ > --- POWER ------------ Light Nuclear Core > --- PROPULSION ------- Improved Cesium-ion Thruster Improved Cesium-ion Thruster Improved Cesium-ion Thruster > --- UTILITY ---------- Weight Redist. System Improved Terrain Scanner Armor Integrity Analyzer > --- WEAPON ----------- Greatsword > --- INVENTORY -------- Ion Engine Medium Storage Unit [Rating: 35] Favorites ----------- Power Ion Engine Engine Ion Engine Power Core Light Nuclear Core Propulsion Aluminum Leg Treads Light Treads Leg Aluminum Leg Flight Unit Improved Cesium-ion Thruster Utility Heat Sink Device Heat Sink Storage Huge Storage Unit Processor Armor Integrity Analyzer Protection Light Armor Plating Weapon Medium Laser Energy Gun Medium Laser Ballistic Gun Light Assault Rifle Slashing Weapon Greatsword Build | -11 -10 -9 -9 -8 -8 ------- Run | Yrd Mat Mat Sto Mat Gar Slots Evolved 4 | . . 2 . 2 . Power . | . . . . . . Propulsion 1 | . . 1 . . . Utility 3 | . . 1 . 2 . Weapon . | . . . . . . Parts Attached 35 | 5 4 4 1 7 14 Power 8 | 1 1 1 . 1 4 Engine 6 | 1 1 1 . 1 2 Core 2 | . . . . . 2 Reactor . | . . . . . . Propulsion 10 | 2 . . . 3 5 Treads 2 | . . . . . 2 Leg 4 | 2 . . . . 2 Wheel . | . . . . . . Hover . | . . . . . . Flight 4 | . . . . 3 1 Utility 8 | . 3 2 . 2 1 Device 4 | . 2 1 . 1 . Storage 1 | . 1 . . . . Processor 2 | . . 1 . 1 . Hackware . | . . . . . . Protection 1 | . . . . . 1 Artifact . | . . . . . . Weapon 9 | 2 . 1 1 1 4 Energy Gun 5 | 2 . 1 . . 2 Energy Cannon . | . . . . . . Ballistic Gun 2 | . . . 1 . 1 Ballistic Cannon . | . . . . . . Launcher . | . . . . . . Special Weapon . | . . . . . . Impact Weapon . | . . . . . . Slashing Weapon 2 | . . . . 1 1 Piercing Weapon . | . . . . . . Special Melee Weapon . | . . . . . . Unidentified Prototypes 2 | . . 1 . 1 . Parts Lost 14 | . . 5 . . 9 Power 3 | . . 1 . . 2 Propulsion 5 | . . 2 . . 3 Utility 2 | . . 1 . . 1 Weapon 4 | . . 1 . . 3 Highest Loss Streak 5 | . . 3 . . 5 To Critical Strikes . | . . . . . . Average Slot Usage (%) 66 | . 92 80 53 52 60 Engine 6 | . 14 10 . 2 6 Treads 3 | . . . . . 7 Leg 8 | . 28 21 . . . Flight 5 | . . . . 22 9 Device 15 | . 20 19 22 10 9 Processor 8 | . . 10 11 6 9 Protection 1 | . . . . . 3 Energy Gun 13 | . 28 18 11 1 9 Ballistic Gun 1 | . . . 9 1 . Slashing Weapon 1 | . . . . 6 3 Naked Turns . | . . . . . . Heaviest Build 87 | 7 87 13 5 11 17 Greatest Support 40 | 20 20 26 9 12 40 Greatest Overweight (x) 4 | . 4 . 1 1 2 Average Overweight (x) . | . . . . . . Largest Inventory Capacity 25 | 5 25 5 5 5 5 Average Capacity 5 | 5 5 5 5 5 5 Most Carried 4 | . 1 3 2 4 2 Average Carried . | . . . 1 1 . Final Capacity 5 | 5 5 5 5 5 5 Final Carried 2 | . 1 2 1 1 . Class Distribution -------------------- 69% | Mutant 16% | Scavenger-Mutant 13% | Sprinter Dominant Class ---------------- Mutant | -10/Materials Mutant | -9/Materials Mutant | -9/Storage Mutant | -8/Materials Scavenger-Mutant | -8/Garrison Resources | -11 -10 -9 -9 -8 -8 ----------- Run | Yrd Mat Mat Sto Mat Gar Matter Collected 567 | 250 40 40 15 50 172 Remotely . | . . . . . . Salvage Created 798 | 45 48 223 46 138 298 Parts 47 | . 1 11 3 13 19 Haulers Intercepted 1 | . . . . 1 . Recyclers Shooed 1 | . . . 1 . . Parts Field Recycled . | . . . . . . Retrieved Matter . | . . . . . . Parts Self-Destructed . | . . . . . . Prevented . | . . . . . . Kills | -11 -10 -9 -9 -8 -8 ------- Run | Yrd Mat Mat Sto Mat Gar Combat Hostiles Destroyed 21 | 1 1 7 1 1 10 Melee 3 | . . . . 1 2 Guns 16 | 1 1 5 1 . 8 Classes Destroyed 7 | 1 . 2 1 2 1 Builder 1 | . . . 1 . . Hauler 1 | . . . . 1 . Watcher 1 | . . . . 1 . Swarmer 8 | . . 4 . . 4 Cutter 2 | . . . . . 2 Grunt 5 | 1 1 . 1 . 2 Sentry 6 | . . 3 . 1 2 Best Kill Streak 5 | 1 1 5 1 3 4 Combat Bots Only 5 | 1 1 5 1 1 4 Max Kills in Single Turn 1 | 1 1 1 1 1 1 Gunslinging . | . . . . . . Exploded . | . . . . . . Melee 1 | . . . . 1 1 Uniques/NPCs Destroyed . | . . . . . . Combat | -11 -10 -9 -9 -8 -8 -------- Run | Yrd Mat Mat Sto Mat Gar Hostile Shots Fired 228 | 4 5 85 3 4 127 Missed 75 | 2 1 28 . 3 41 Damage Taken 2106 | 23 46 668 28 14 1327 Core 821 | 23 12 217 9 . 560 Absorbed by Shields 9 | . . . 9 . . Core Remaining (%) 73 | 90 86 . 43 . . Volleys Fired 58 | 3 2 21 7 . 25 Largest 2 | 2 2 2 2 . 2 Hottest 130 | 100 100 106 76 . 130 Shots Fired 93 | 6 4 35 14 . 34 Gun 93 | 6 4 35 14 . 34 Cannon . | . . . . . . Launcher . | . . . . . . Special . | . . . . . . Kinetic 19 | . . . 7 . 12 Thermal 74 | 6 4 35 7 . 22 Explosive . | . . . . . . Electromagnetic . | . . . . . . Robot Hit Streak 8 | 2 6 8 3 . 5 Robot Miss Streak 5 | 1 . 5 2 . 3 Penetration Max . | . . . . . . Secondary Targets 2 | . . . . . 2 Max Gunslinging Chain 1 | . . . . . 1 Shots Hit Robots 67 | 3 4 18 7 3 32 Core Hits 33 | 2 2 8 2 3 16 Critical Kills . | . . . . . . Critical Parts Destroyed . | . . . . . . Critical Strikes 16 | 1 1 6 1 . 7 Burn 10 | 1 1 6 1 . 1 Sever 6 | . . . . . 6 Melee Attacks 19 | . . . . 3 16 Impact . | . . . . . . Slashing 19 | . . . . 3 16 Piercing . | . . . . . . Sneak Attacks 1 | . . . . 1 . Combat Hostiles . | . . . . . . Follow-up Attacks . | . . . . . . Damage Inflicted 1793 | 38 50 327 98 252 1028 Guns 864 | 38 50 327 87 . 362 Cannons . | . . . . . . Explosions . | . . . . . . Melee 914 | . . . . 252 662 Ramming 15 | . . . 11 . 4 Kinetic 190 | . . . 20 . 170 Thermal 674 | 38 50 327 67 . 192 Explosive . | . . . . . . Electromagnetic . | . . . . . . Impact . | . . . . . . Slashing 914 | . . . . 252 662 Piercing . | . . . . . . Highest Corruption 4 | . . . 4 . . Average Corruption 3 | . . . 3 . . Corruption Purged . | . . . . . . Corruption Blocked . | . . . . . . Effects 3 | . . . 3 . . Heat Flow Errors 1 | . . . 1 . . Energy Discharges 1 | . . . 1 . . Data Loss (minor) 1 | . . . 1 . . Overload Shots . | . . . . . . Overflow Damage 20 | . . . . . 20 Projectiles . | . . . . . . Explosions . | . . . . . . Melee 20 | . . . . . 20 Knockbacks . | . . . . . . Impact . | . . . . . . Kinetic . | . . . . . . Secondary . | . . . . . . Self-Inflicted Damage 6 | . . . 4 . 2 Shots . | . . . . . . Rammed 6 | . . . 4 . 2 Targets Rammed 6 | . . . 4 . 2 Kicked . | . . . . . . Crushed . | . . . . . . Highest Temperature 326 | 129 30 63 251 . 326 Average Temperature 82 | 65 17 29 76 . 136 Received Heat Transfer 831 | 12 24 180 12 9 594 Effects 1 | . . . . . 1 Energy Bleed 1 | . . . . . 1 Siege Activations . | . . . . . . Robots Corrupted . | . . . . . . Combat Hostiles . | . . . . . . Parts Fried . | . . . . . . Impact Corruptions . | . . . . . . Robots Melted 2 | . . 2 . . . Combat Hostiles 2 | . . 2 . . . Parts Melted 8 | 3 . 5 . . . Heat Transferred 2368 | 185 222 1221 222 . 518 Parts Sabotaged . | . . . . . . Parts Stolen . | . . . . . . Parts Stripped . | . . . . . . Power Chain Reactions . | . . . . . . Alert | -11 -10 -9 -9 -8 -8 ------- Run | Yrd Mat Mat Sto Mat Gar Peak Influence 388 | 20 58 254 167 144 388 Initial 102 | . 13 24 102 70 93 Average 164 | 2 28 115 145 105 276 Maximum Alert Level 1 | . . 1 . . 1 Low Security (%) 60 | 100 100 68 100 100 14 Level 1 39 | . . 31 . . 85 Level 2 . | . . . . . . Level 3 . | . . . . . . Level 4 . | . . . . . . Level 5 . | . . . . . . High Security . | . . . . . . Max Security . | . . . . . . Squads Dispatched 3 | . 2 . 1 . . Investigation 1 | . 1 . . . . Extermination . | . . . . . . Reinforcement 2 | . 1 . 1 . . Assault . | . . . . . . Garrison . | . . . . . . Intercept . | . . . . . . Searches Triggered . | . . . . . . Construction Impeded . | . . . . . . Haulers Reinforced . | . . . . . . Active Scanning Responses . | . . . . . . Cargo Convoy Interrupts . | . . . . . . Stealth | -11 -10 -9 -9 -8 -8 --------- Run | Yrd Mat Mat Sto Mat Gar Distress Signals 1 | . . 1 . . . Communications Jammed . | . . . . . . Distress Signals . | . . . . . . Times Spotted 42 | 1 3 13 2 3 20 Peak Tracking Total 5 | 1 1 5 1 1 5 Tactical Retreats 6 | . 1 1 . . 4 Traps | -11 -10 -9 -9 -8 -8 ------- Run | Yrd Mat Mat Sto Mat Gar Traps Triggered 6 | . . . 4 . 2 Indirectly . | . . . . . . Trap Hack Attempts . | . . . . . . Triggered . | . . . . . . Disarmed . | . . . . . . Reprogrammed . | . . . . . . Reused . | . . . . . . Traps Extracted . | . . . . . . Installed . | . . . . . . Triggered . | . . . . . . Machines | -11 -10 -9 -9 -8 -8 ---------- Run | Yrd Mat Mat Sto Mat Gar Machines Disabled . | . . . . . . Max in Single Turn . | . . . . . . Garrison Relay 1 | . . . . . 1 Machines Repaired . | . . . . . . Machines Dismantled . | . . . . . . Machines Sabotaged . | . . . . . . Overloaded Fab Kills . | . . . . . . Hacking | -11 -10 -9 -9 -8 -8 --------- Run | Yrd Mat Mat Sto Mat Gar Machines Accessed 1 | . . . . 1 . Terminals . | . . . . . . Fabricators . | . . . . . . Repair Stations . | . . . . . . Recycling Units . | . . . . . . Scanalyzers . | . . . . . . Garrison Access 1 | . . . . 1 . Total Hacks 1 | . . . . 1 . Successful 1 | . . . . 1 . Failed . | . . . . . . Catastrophic . | . . . . . . Database Lockouts . | . . . . . . Manual . | . . . . . . Terminals . | . . . . . . Fabricators . | . . . . . . Repair Stations . | . . . . . . Recycling Units . | . . . . . . Scanalyzers . | . . . . . . Garrison Access 1 | . . . . 1 . Terminal Hacks . | . . . . . . Fabricator Hacks . | . . . . . . Repair Station Hacks . | . . . . . . Recycling Unit Hacks . | . . . . . . Scanalyzer . | . . . . . . Garrison Access Hacks 1 | . . . . 1 . Unlock Access 1 | . . . . 1 . Unauthorized Hacks . | . . . . . . Terminals . | . . . . . . Fabricators . | . . . . . . Repair Stations . | . . . . . . Recycling Units . | . . . . . . Scanalyzers . | . . . . . . Garrison Access . | . . . . . . Data Cores Recovered . | . . . . . . Used . | . . . . . . Hacking Detections . | . . . . . . Full Trace Events . | . . . . . . Feedback Events . | . . . . . . Feedback Blocked . | . . . . . . Robot Schematics Acquired . | . . . . . . Robots Built . | . . . . . . Authchips . | . . . . . . Time . | . . . . . . Total Robot Build Rating . | . . . . . . Part Schematics Acquired . | . . . . . . Parts Built . | . . . . . . Authchips . | . . . . . . Time . | . . . . . . Total Part Build Rating . | . . . . . . Parts Repaired . | . . . . . . Time . | . . . . . . Parts Recycled . | . . . . . . Recycled Matter . | . . . . . . Retrieved Matter . | . . . . . . Retrieved Components . | . . . . . . Parts Scanalyzed . | . . . . . . Part Schematics Acquired . | . . . . . . Parts Damaged . | . . . . . . Bothacking | -11 -10 -9 -9 -8 -8 ------------ Run | Yrd Mat Mat Sto Mat Gar Used RIF Installer . | . . . . . . Robots Hacked . | . . . . . . Non-combat . | . . . . . . Combat . | . . . . . . Robot Hacks Applied . | . . . . . . Relay Couplers Released 3 | . . . . . 3 Machine Destruction 3 | . . . . . 3 Fabnet Peak Effective % . | . . . . . . Robots Rewired . | . . . . . . Allies Hacked . | . . . . . . Hacks Repelled . | . . . . . . Allies | -11 -10 -9 -9 -8 -8 -------- Run | Yrd Mat Mat Sto Mat Gar Total Allies . | . . . . . . Largest Group . | . . . . . . Highest-Rated Group . | . . . . . . Highest-Rated Ally . | . . . . . . Total Orders . | . . . . . . Ally Attacks . | . . . . . . Total Damage . | . . . . . . Kills . | . . . . . . Allies Corrupted . | . . . . . . Allies Melted . | . . . . . . Intel | -11 -10 -9 -9 -8 -8 ------- Run | Yrd Mat Mat Sto Mat Gar Robot Analysis Total . | . . . . . . Derelict Logs Recovered . | . . . . . . Drone Launches . | . . . . . . Drone Recoveries . | . . . . . . Exploration | -11 -10 -9 -9 -8 -8 ------------- Run | Yrd Mat Mat Sto Mat Gar Turns Passed 1814 | 83 260 335 295 134 707 Spaces Moved 1392 | 65 200 209 235 280 403 Core 285 | 16 . 7 235 16 11 Treads 185 | . . . . . 185 Legs 454 | 49 200 202 . . 3 Wheels . | . . . . . . Hover . | . . . . . . Flight 468 | . . . . 264 204 Fastest Speed 32 | 50 120 50 50 32 32 Average Speed 90 | 102 121 117 82 37 99 Slowest Speed 400 | 120 400 120 100 100 160 Overloaded Moves . | . . . . . . Propulsion Burnouts . | . . . . . . Robots Hopped . | . . . . . . Cave-ins Triggered . | . . . . . . Exploration Rate (%) 28 | 7 46 20 40 25 33 Regions Visited 5 Branch Regions 1 Pre-discovered Areas . | . . . . . . Known Exits Taken 3 | . . 1 1 1 . Unknown Exits Taken 2 | 1 1 . . . . Scrap Searched . | . . . . . . Spaces Dug . | . . . . . . Terrain Destroyed . | . . . . . . Melee . | . . . . . . Projectile . | . . . . . . AOE . | . . . . . . Terrain Rammed . | . . . . . . Walls Destroyed . | . . . . . . Machines Disabled . | . . . . . . Actions | -11 -10 -9 -9 -8 -8 --------- Run | Yrd Mat Mat Sto Mat Gar Total 1817 | 72 212 263 322 305 643 Wait 199 | . 5 21 47 . 126 Move 1384 | 64 199 208 234 279 400 Hop . | . . . . . . Pick Up 29 | . 1 6 . 9 13 Fast Attach 9 | 5 2 . . 1 1 Attach 17 | . 1 2 1 6 7 Detach . | . . . . . . Swap 9 | . 1 2 . . 6 Drop 22 | . 1 3 . 7 11 Fire 58 | 3 2 21 7 . 25 Melee 19 | . . . . 3 16 Ram 6 | . . . 4 . 2 Kick . | . . . . . . Crush . | . . . . . . Escape Stasis 65 | . . . 29 . 36 Rewire . | . . . . . . Trap . | . . . . . . Miscellaneous . | . . . . . . Route ------- -11/Scrapyard -10/Materials -9/Materials -9/Storage -8/Materials (discovered 2 exits: [*Fac] / Gar) -8/Garrison (discovered 1 exit: [*Fac]) History --------- Turn | Location | Event 2 | -11/Scrapyard | Met Revision 17 61 | -11/Scrapyard | Discovered new exit (range 8) 84 | -11/Scrapyard | Entered Materials 302 | -10/Materials | Build established: Mutant 328 | -10/Materials | Discovered new exit (range 13) 344 | -10/Materials | Entered another Materials area 344 | -9/Materials | Evolved 2 slots: Propulsion x1, Utility x1 664 | -9/Materials | Discovered new exit (range 11) 673 | -9/Materials | Core integrity fell below 50% 679 | -9/Materials | Identified exit to Storage 679 | -9/Materials | Entered Storage 706 | -9/Storage | Lost 3 parts (1p2n) 959 | -9/Storage | Discovered new exit (range 16) 973 | -9/Storage | Identified exit to Materials 974 | -9/Storage | Entered Materials 974 | -8/Materials | Evolved 2 slots: Utility x2 1052 | -8/Materials | Discovered new exit (range 14) 1105 | -8/Materials | Identified exit to Garrison 1108 | -8/Materials | Entered Garrison 1220 | -8/Garrison | Triggered checkpoint 1310 | -8/Garrison | Lost 5 parts (1p1n1u2w) 1444 | -8/Garrison | Triggered checkpoint 1480 | -8/Garrison | Triggered checkpoint 1564 | -8/Garrison | Discovered new exit (range 12) 1582 | -8/Garrison | Attempted to access garrison exit controls, blocked by remote lockdown 1638 | -8/Garrison | Core integrity fell below 50% 1770 | -8/Garrison | Triggered checkpoint 1770 | -8/Garrison | Garrison Relay disabled 1810 | -8/Garrison | Core integrity fell below 20% 1815 | -8/Garrison | Destroyed by G-47 Trooper with Particle Gun Last Messages --------------- Field strength at 15. Field strength at 10. Field strength at 5. Stasis field depleted. Beams of light sweep through the air. An alarm sounds. Garrison Relay disabled. Relay Coupler [Swarmer] tumbles out of relay unit. Relay Coupler [Sentry] tumbles out of relay unit. Relay Coupler [Swarmer] tumbles out of relay unit. G-47 Trooper Aluminum Leg severed. Blade Saw destroyed. Lgt. Nuclear Core destroyed. Surge Thruster destroyed. Slammed into G-47 Trooper. Destabilizing: System interference. Armor Integrity Analyzer temporarily disabled. Map ----- +----------------------------------------------------+ | ??????????????????????????????????????????" | | ??????????????????????????????????????????" | | ??????????????????????????????????????????" | | ??????????????????????????????????????????# ## | | ????????????????####??????????????????????# ## | | ????????????????# #??????????????????????# ^ | | ????????????????# #??????????????????????# | | ????????????????# #??????????????????????# ^ | | ??????????????### #??????????????????????# ## | | ??????????????#"# ###????????????????????# ## | | ??????????????# ! #????????????????????# ### | | ??????????????#"! #????????????????????# #?? | | ??????????????#" ! = #????????????????????# #?? | | ??????????????#"# ###????????????????????# #?? | | ??????????????### #??????????????????????# #?? | | ????????????????# ######################## #?? | | ????????????????# ^^ #?? | | ????????????????# *% #?? | | ????????????????###### [* #?? | | ?????????????????????#=[!######### ###########?? | | ?????????????????????#! #???????# #???????????? | | ?????????????????????# #???????# #???????????? | | ?????????????????????# #???????# #???????????? | | ?????????????????????# #???????" #???????????? | | ?????????????????????# #???????" #???????????? | | ?????????????????????# @#???????" #???????????? | | ?????????????????????# #???????# #???????????? | | ?????????????????????# #???????# ???????????? | | ?????????????????????# #???????# ???????????? | | ?????????????????????# #???????# #???????????? | | ?????????????????????# #???????? ????????????? | | ?????????????????????# #???????? ????????????? | | ?????????????????????# #???????? ????????????? | | ?????????????????????# #??????????????????????? | | ?????????????????????# #??????????????????????? | | ?????????????????????#gg #??????????????????????? | | ?????????????????????# g #??????????????????????? | | ??????????############% #??????????????????????? | | ??????????# #??????????????????????? | | ??????????# < #??????????????????????? | | ??????????# #??????????????????????? | | ??????????################??????????????????????? | | ????????????????????????????????????????????????? | | ????????????????????????????????????????????????? | | ????????????????????????????????????????????????? | | ????????????????????????????????????????????????? | | ????????????????????????????????????????????????? | | ????????????????????????????????????????????????? | | ????????????????????????????????????????????????? | | ????????????????????????????????????????????????? | +----------------------------------------------------+ Best States ------------- Heat Dissipation 38 Energy Generation 14 Energy Capacity 265 Matter Stores 300 Matter Capacity 300 Sight Range 16 Terrain Scan Range 16 Terrain Scan Density 10 Additional Mass Support 6 Armor Coverage 150 Evasion (%) 63 Armor Integrity Analysis 30 Recoil Reduction 2 Item Schematics ----------------- None Robot Schematics ------------------ None Fabricated ------------ Nothing Alien Tech Used ----------------- None Achievements -------------- Loot Pinata Storm Trooper Challenges ------------ None Game ------ Seed DerelictMolecularSteel Manual? 0 Play Time 00:28:07 Cumulative 1.7 hours Start 2024.03.31 @ 13:07:51 End 2024.03.31 @ 13:38:39 Sessions 1 Manual Loads 0 Difficulty Rogue Special Mode None Game No. 3 Rogue 3 Adventurer 0 Explorer 0 Win Type - Total 0 Types 0/0/0/0/0/0/0/0/0 Lore% 0 Gallery% 5 Achievement% 4 Wizard Run 0 Options --------- Layout 1 ASCII 0 Keyboard 0 Movement Numpad Keybinds 0 Fullscreen 1 Font 32/SmallcapsGlow Map View 50x35 Zoom Use 0% Tactical HUD 0 Map Filters NONE Filters NONE Steam 1 RUN: 8433b49a-ae17-4ade-a394-e7fc95caf41c